fUST/lending_fUST_20250811
["ID","MTS","AMOUNT","RATE_DAILY","PERIOD"]
[378530706,1754902251075,-330.851879,0.00025,7]
[378530707,1754902251085,-151.0,0.00025,7]
[378530708,1754902251094,-151.0,0.00025,7]
[378530709,1754902251102,-151.0,0.00025,7]
[378530710,1754902251111,-151.0,0.00025,7]
[378530711,1754902251120,-151.0,0.00025,7]
[378530712,1754902251129,-151.0,0.00025,7]
[378530713,1754902251139,-151.0,0.00025,7]
[378530714,1754902251149,-240.009478,0.00025,7]
[378530715,1754902251158,-151.0,0.00025,7]
[378530716,1754902251167,-151.0,0.00025,7]
[378530717,1754902251176,-153.5202,0.00025,7]
[378530718,1754902251185,-151.0,0.00025,7]
[378530719,1754902251194,-424.953675,0.00025,7]
[378530720,1754902251203,-424.953675,0.00025,7]
[378530721,1754902251212,-199.57253,0.00025,7]
[378530722,1754902251222,-199.57253,0.00025,7]
[378530723,1754902251231,-199.57253,0.00025,7]
[378530724,1754902251240,-199.57253,0.00025,7]
[378530725,1754902251250,-153.400648,0.00025,7]
[378530726,1754902251261,-160.0,0.00025,10]
[378530727,1754902251269,-275.42555,0.00025,7]
[378530728,1754902251278,-275.42555,0.00025,7]
[378530729,1754902251288,-275.42555,0.00025,7]
[378530730,1754902251298,-275.42555,0.00025,7]
[378530731,1754902251306,-151.0,0.00025,7]
[378530732,1754902251315,-151.0,0.00025,7]
[378530733,1754902251324,-160.0,0.00025,10]
[378530734,1754902251334,-151.0,0.00025,7]
[378530735,1754902251343,-151.0,0.00025,7]
[378530736,1754902251353,-258.266485,0.00025,7]
[378530737,1754902251362,-258.266485,0.00025,7]
[378530738,1754902251372,-258.266485,0.00025,7]
[378530739,1754902251381,-258.266485,0.00025,7]
[378530740,1754902251391,-151.0,0.00025,7]
[378530741,1754902251400,-151.0,0.00025,7]
[378530742,1754902251409,-151.0,0.00025,7]
[378530743,1754902251418,-151.0,0.00025,7]
[378530744,1754902251427,-160.0,0.00025,10]
[378530745,1754902251437,-527.9539256,0.00025,10]
[378530746,1754902251446,-216.68257536,0.00025,10]
[378530747,1754902251456,-160.0,0.00025,10]
[378530748,1754902251465,-417.15472785,0.00025,10]
[378530749,1754902251474,-843.18994796,0.00025,10]
[378530750,1754902251484,-231.9940742,0.00025,10]
[378530751,1754902251493,-231.9940742,0.00025,3]
[378530752,1754902251502,-461.69158338,0.00025,10]
[378530753,1754902251511,-461.69158338,0.00025,3]
[378530754,1754902251522,-215.4905783,0.00025,10]
[378530755,1754902251535,-203.566575,0.00025,2]
[378530756,1754902251545,-215.4905783,0.00025,3]
[378530757,1754902251554,-12671.21867243,0.00025,10]
[378530758,1754902251564,-12671.21867243,0.00025,3]
[378530759,1754902251575,-500.0,0.00025003,7]
[378530760,1754902251585,-796.1071285,0.00025041,2]
[378530761,1754902251594,-796.1071285,0.00025041,2]
[378530762,1754902251605,-1622.0,0.00025055,2]
[378530763,1754902251615,-500.0,0.00025057,2]
[378530764,1754902251625,-305.28894,0.00025082,8]
[378530765,1754902251635,-151.0,0.00025116,7]
[378530766,1754902251644,-151.0,0.00025116,7]
[378530767,1754902251655,-179.89206476,0.00025132,2]
[378530768,1754902251665,-573.11525788,0.00025164,2]
[378530769,1754902251675,-860.0,0.00025178,2]
[378530770,1754902251684,-500.0,0.00025182,2]
[378530771,1754902251694,-522.0,0.00025206,2]
[378530772,1754902251703,-3941.38774085,0.00025216,2]
[378530773,1754902251713,-1619.57164758,0.00025216,2]
[378530774,1754902251721,-152.026585,0.00025221,7]
[378530775,1754902251731,-4000.0,0.00025239,4]
[378530776,1754902251741,-3500.0,0.0002526,2]
[378530777,1754902251751,-2500.0,0.00025264,2]
[378530778,1754902251760,-1500.0,0.00025268,2]
[378530779,1754902251770,-1500.0,0.00025268,2]
[378530780,1754902251780,-150.0,0.00025273,2]
[378530781,1754902251789,-73562.29,0.000253,7]
[378530782,1754902251799,-21216.53,0.000253,7]
[378530783,1754902251808,-46641.88,0.000253,2]
[378530784,1754902251818,-305.28894,0.000253,7]
[378530785,1754902251827,-305.28894,0.00025339,15]
[378530786,1754902251836,-160.0,0.00025357,3]
[378530787,1754902251846,-305.28894,0.00025411,8]
[378530788,1754902251855,-151.0,0.00025419,7]
[378530789,1754902251864,-151.0,0.00025419,7]
[378530790,1754902251874,-330.32819124,0.00025421,2]
[378530791,1754902251883,-300.0,0.00025421,2]
[378530792,1754902251892,-232.225498,0.00025421,7]
[378530793,1754902251902,-151.461735,0.00025421,7]
[378530794,1754902251911,-151.0,0.00025421,7]
[378530795,1754902251921,-189.5078021,0.00025456,2]
[378530796,1754902251930,-500.0,0.00025456,2]
[378530797,1754902251940,-2500.0,0.00025464,2]
[378530798,1754902251950,-2500.0,0.00025464,2]
[378530799,1754902251960,-900.0,0.00025469,3]
[378530800,1754902251969,-330.851879,0.00025469,7]
[378530801,1754902251979,-330.851879,0.00025469,7]
[378530802,1754902251988,-151.0,0.00025469,7]
[378530803,1754902251997,-196.392852,0.00025469,7]
[378530804,1754902252007,-16325.84585986,0.0002547,2]
[378530805,1754902252016,-151.0,0.0002547,7]
[378530806,1754902252025,-163.265629,0.0002547,7]
[378530807,1754902252035,-151.0,0.0002547,7]
[378530808,1754902252044,-364.938072,0.0002547,7]
[378530809,1754902252054,-364.938072,0.0002547,7]
[378530810,1754902252064,-151.0,0.0002547,7]
[378530811,1754902252073,-151.0,0.0002547,7]
[378530812,1754902252083,-151.0,0.0002547,7]
[378530813,1754902252092,-151.0,0.0002547,7]
[378530814,1754902252101,-247.217336,0.0002547,7]
[378530815,1754902252111,-522.0,0.0002548,2]
[378530816,1754902252120,-151.0,0.0002548,7]
[378530817,1754902252129,-258.266485,0.00025498,7]
[378530818,1754902252138,-258.266485,0.00025498,7]
[378530819,1754902252147,-1000.0,0.000255,2]
[378530820,1754902252156,-151.0,0.000255,7]
[378530821,1754902252165,-285.690599,0.00025521,7]
[378530822,1754902252175,-285.690599,0.00025521,7]
[378530823,1754902252185,-151.0,0.00025521,7]
[378530824,1754902252194,-152.454023,0.00025521,7]
[378530825,1754902252204,-424.953675,0.00025521,7]
[378530826,1754902252213,-424.953675,0.00025521,7]
[378530827,1754902252223,-199.57253,0.00025521,7]
[378530828,1754902252232,-199.57253,0.00025521,7]
[378530829,1754902252242,-275.42555,0.00025521,7]
[378530830,1754902252251,-275.42555,0.00025521,7]
[378530831,1754902252261,-203.058093,0.00025521,7]
[378530832,1754902252271,-2500.0,0.00025542,2]
[378530833,1754902252281,-550.0,0.00025542,2]
[378530834,1754902252290,-305.28894,0.0002556,10]
[378530835,1754902252299,-767.0,0.00025561,2]
[378530836,1754902252308,-160.0,0.00025592,4]
[378530837,1754902252318,-151.0,0.000256,7]
[378530838,1754902252327,-151.0,0.000256,7]
[378530839,1754902252337,-261.224352,0.000256,7]
[378530840,1754902252348,-151.0,0.000256,7]
[378530841,1754902252357,-151.0,0.000256,7]
[378530842,1754902252366,-151.0,0.000256,7]
[378530843,1754902252375,-151.0,0.000256,7]
[378530844,1754902252385,-151.0,0.000256,7]
[378530845,1754902252513,-154.080501,0.000256,7]
[378530846,1754902252525,-154.080501,0.000256,7]
[378530847,1754902252535,-151.0,0.000256,7]
[378530848,1754902252543,-256.804595,0.000256,7]
[378530849,1754902252553,-151.0,0.000256,7]
[378530850,1754902252562,-809.690858,0.000256,7]
[378530851,1754902252573,-809.690858,0.000256,7]
[378530852,1754902252583,-255.337582,0.000256,7]
[378530853,1754902252592,-255.337582,0.000256,7]
[378530854,1754902252602,-8604.54,0.000256,7]
[378530855,1754902252611,-634.995918,0.000256,7]
[378530856,1754902252620,-634.995918,0.000256,7]
[378530857,1754902252629,-408.400801,0.00025616,7]
[378530858,1754902252639,-408.400806,0.00025616,7]
[378530859,1754902252649,-1622.0,0.00025655,2]
[378530860,1754902252659,-151.0,0.00025664,7]
[378530861,1754902252668,-182.598046,0.000257,7]
[378530862,1754902252677,-255.0,0.00025714,2]
[378530863,1754902252687,-4000.0,0.00025715,4]
[378530864,1754902252696,-960.0,0.00025726,2]
[378530865,1754902252706,-500.0,0.0002573,2]
[378530866,1754902252715,-305.28894,0.0002574,8]
[378530867,1754902252724,-522.0,0.00025754,2]
[378530868,1754902252733,-156.628164,0.0002577,7]
[378530869,1754902252743,-305.28894,0.0002577,7]
[378530870,1754902252752,-313.0,0.00025786,2]
[378530871,1754902252761,-823.0,0.00025787,2]
[378530872,1754902252770,-823.0,0.00025787,2]
[378530873,1754902252779,-1000.0,0.000258,15]
[378530874,1754902252789,-900.0,0.000258,2]
[378530875,1754902252799,-151.0,0.000258,7]
[378530876,1754902252808,-151.0,0.000258,7]
[378530877,1754902252817,-199.57253,0.000258,7]
[378530878,1754902252827,-199.57253,0.000258,7]
[378530879,1754902252836,-275.42555,0.000258,7]
[378530880,1754902252846,-275.42555,0.000258,7]
[378530881,1754902252855,-151.0,0.000258,7]
[378530882,1754902252865,-258.266485,0.000258,7]
[378530883,1754902252874,-258.266485,0.000258,7]
[378530884,1754902252883,-151.0,0.000258,7]
[378530885,1754902252892,-4000.0,0.00025808,2]
[378530886,1754902252902,-3000.0,0.00025812,2]
[378530887,1754902252911,-2000.0,0.00025816,2]
[378530888,1754902252920,-1057.71042184,0.00025816,2]
[378530889,1754902252929,-500.0,0.00025818,2]
[378530890,1754902252938,-160.0,0.00025827,5]
[378530891,1754902252948,-151.0,0.00025848,2]
[378530892,1754902252958,-278.990504,0.0002585,7]
[378530893,1754902252967,-151.0,0.0002585,7]
[378530894,1754902252976,-151.0,0.0002585,7]
[378530895,1754902252985,-152.2224,0.0002585,7]
[378530896,1754902252994,-330.851879,0.0002585,7]
[378530897,1754902253003,-330.851879,0.0002585,7]
[378530898,1754902253012,-152.220325,0.0002585,7]
[378530899,1754902253021,-8734.38280604,0.00025856,2]
[378530900,1754902253030,-207.665,0.00025873,2]
[378530901,1754902253039,-151.0,0.000259,7]
[378530902,1754902253048,-1000.0,0.00025968,2]
[378530903,1754902253057,-450.0,0.00025968,2]
[378530904,1754902253066,-38775.34687167,0.00026,10]
[378530905,1754902253075,-520.29380654,0.00026,2]
[378530906,1754902253084,-19900.0,0.00026,2]
[378530907,1754902253093,-1000.0,0.00026,26]
[378530908,1754902253103,-235.516687,0.00026,7]
[378530909,1754902253112,-285.690599,0.00026,7]
[378530910,1754902253121,-285.690599,0.00026,7]
[378530911,1754902253130,-151.0,0.00026,7]
[378530912,1754902253139,-151.0,0.00026,7]
[378530913,1754902253148,-151.0,0.00026,7]
[378530914,1754902253157,-151.0,0.00026,7]
[378530915,1754902253166,-151.0,0.00026,7]
[378530916,1754902253175,-151.0,0.00026,7]
[378530917,1754902253184,-151.0,0.00026,7]
[378530918,1754902253193,-151.0,0.00026,7]
[378530919,1754902253204,-151.0,0.00026,7]
[378530920,1754902253212,-151.0,0.00026,7]
[378530921,1754902253222,-364.938072,0.00026,7]
[378530922,1754902253231,-364.938072,0.00026,7]
[378530923,1754902253240,-154.080501,0.00026,7]
[378530924,1754902253249,-154.080501,0.00026,7]
[378530925,1754902253259,-151.0,0.00026,7]
[378530926,1754902253268,-151.0,0.00026,7]
[378530927,1754902253277,-151.0,0.00026,7]
[378530928,1754902253286,-157.970121,0.00026,7]
[378530929,1754902253295,-151.0,0.00026,7]
[378530930,1754902253304,-151.0,0.00026,7]
[378530931,1754902253314,-809.690858,0.00026,7]
[378530932,1754902253323,-809.690858,0.00026,7]
[378530933,1754902253332,-151.0,0.00026,7]
[378530934,1754902253341,-181.599893,0.00026,7]
[378530935,1754902253350,-181.599893,0.00026,7]
[378530936,1754902253359,-151.0,0.00026,7]
[378530937,1754902253369,-255.337582,0.00026,7]
[378530938,1754902253379,-255.337582,0.00026,7]
[378530939,1754902253387,-634.995918,0.00026,7]
[378530940,1754902253396,-634.995918,0.00026,7]
[378530941,1754902253405,-330.851879,0.00026,7]
[378530942,1754902253415,-330.851879,0.00026,7]
[378530943,1754902253424,-823.216676,0.00026,7]
[378530944,1754902253434,-823.216676,0.00026,7]
[378530945,1754902253443,-151.0,0.00026,7]
[378530946,1754902253452,-153.277405,0.00026,7]
[378530947,1754902253461,-151.0,0.00026,7]
[378530948,1754902253469,-424.953675,0.00026,7]
[378530949,1754902253479,-424.953675,0.00026,7]
[378530950,1754902253488,-199.57253,0.00026,7]
[378530951,1754902253497,-199.57253,0.00026,7]
[378530952,1754902253506,-199.57253,0.00026,7]
[378530953,1754902253515,-199.57253,0.00026,7]
[378530954,1754902253528,-160.0,0.00026,10]
[378530955,1754902253537,-275.42555,0.00026,7]
[378530956,1754902253546,-275.42555,0.00026,7]
[378530957,1754902253555,-275.42555,0.00026,7]
[378530958,1754902253566,-275.42555,0.00026,7]
[378530959,1754902253575,-151.0,0.00026,7]
[378530960,1754902253584,-151.0,0.00026,7]
[378530961,1754902253593,-160.0,0.00026,10]
[378530962,1754902253605,-258.266485,0.00026,7]
[378530963,1754902253615,-258.266485,0.00026,7]
[378530964,1754902253625,-258.266485,0.00026,7]
[378530965,1754902253634,-258.266485,0.00026,7]
[378530966,1754902253643,-151.0,0.00026,7]
[378530967,1754902253652,-151.0,0.00026,7]
[378530968,1754902253661,-160.0,0.00026,10]
[378530969,1754902253670,-527.9539256,0.00026,10]
[378530970,1754902253679,-216.68257536,0.00026,10]
[378530971,1754902253689,-160.0,0.00026,10]
[378530972,1754902253698,-417.15472785,0.00026,10]
[378530973,1754902253708,-843.18994796,0.00026,10]
[378530974,1754902253717,-231.9940742,0.00026,10]
[378530975,1754902253726,-461.69158338,0.00026,10]
[378530976,1754902253736,-215.4905783,0.00026,10]
[378530977,1754902253748,-12671.21867243,0.00026,10]
[378530978,1754902253757,-500.0,0.00026004,2]
[378530979,1754902253766,-3000.0,0.00026012,2]
[378530980,1754902253778,-3000.0,0.00026012,2]
[378530981,1754902253789,-522.0,0.00026028,2]
[378530982,1754902253799,-234.96692829,0.00026039,2]
[378530983,1754902253809,-160.0,0.00026062,6]
[378530984,1754902253819,-3068.53565647,0.0002609,2]
[378530985,1754902253828,-650.0,0.0002609,2]
[378530986,1754902253838,-3292.0,0.00026152,2]
[378530987,1754902253847,-191.1740077,0.0002616,2]
[378530988,1754902253857,-200.0,0.0002618,15]
[378530989,1754902253867,-4000.0,0.00026191,4]
[378530990,1754902253877,-1060.0,0.00026274,2]
[378530991,1754902253886,-408.0,0.00026277,2]
[378530992,1754902253896,-636.0,0.00026277,2]
[378530993,1754902253906,-971.0,0.00026277,2]
[378530994,1754902253915,-2151.0,0.00026277,2]
[378530995,1754902253923,-500.0,0.00026278,2]
[378530996,1754902253933,-160.0,0.00026297,7]
[378530997,1754902253941,-522.0,0.00026302,2]
[378530998,1754902253951,-4500.0,0.00026356,2]
[378530999,1754902253960,-3500.0,0.0002636,2]
[378531000,1754902253969,-2500.0,0.00026364,2]
[378531001,1754902253978,-151.0,0.00026416,7]
[378531002,1754902253987,-305.28894,0.00026421,15]
[378531003,1754902253996,-150.0,0.00026422,2]
[378531004,1754902254006,-150.0,0.00026422,2]
[378531005,1754902254015,-151.0,0.000265,7]
[378531006,1754902254025,-150.0,0.00026512,2]
[378531007,1754902254034,-150.0,0.00026512,2]
[378531008,1754902254044,-150.0,0.00026512,2]
[378531009,1754902254054,-150.0,0.00026512,2]
[378531010,1754902254063,-160.805127,0.00026516,7]
[378531011,1754902254072,-151.0,0.00026516,7]
[378531012,1754902254082,-151.0,0.00026516,7]
[378531013,1754902254091,-154.080501,0.00026516,7]
[378531014,1754902254101,-154.080501,0.00026516,7]
[378531015,1754902254110,-151.0,0.00026516,7]
[378531016,1754902254119,-151.0,0.00026516,7]
[378531017,1754902254127,-600.0,0.00026516,2]
[378531018,1754902254136,-160.0,0.00026531,8]
[378531019,1754902254145,-1005.0,0.00026538,2]
[378531020,1754902254154,-500.0,0.00026552,2]
[378531021,1754902254164,-3500.0,0.0002656,2]
[378531022,1754902254173,-3500.0,0.0002656,2]
[378531023,1754902254182,-522.0,0.00026576,2]
[378531024,1754902254191,-159.0,0.00026581,7]
[378531025,1754902254200,-364.938072,0.000266,7]
[378531026,1754902254212,-364.938072,0.000266,7]
[378531027,1754902254221,-151.0,0.000266,7]
[378531028,1754902254230,-151.0,0.000266,7]
[378531029,1754902254239,-151.0,0.000266,7]
[378531030,1754902254248,-181.599893,0.000266,7]
[378531031,1754902254259,-181.599893,0.000266,7]
[378531032,1754902254268,-823.216676,0.000266,7]
[378531033,1754902254278,-823.216676,0.000266,7]
[378531034,1754902254287,-862.56739523,0.00026638,2]
[378531035,1754902254296,-1263.97726586,0.00026656,2]
[378531036,1754902254305,-4000.0,0.00026667,4]
[378531037,1754902254314,-273.914335,0.00026676,2]
[378531038,1754902254327,-8604.54,0.000267,7]
[378531039,1754902254336,-255.337582,0.00026712,7]
[378531040,1754902254345,-255.337582,0.00026712,7]
[378531041,1754902254354,-634.995918,0.00026712,7]
[378531042,1754902254363,-634.995918,0.00026712,7]
[378531043,1754902254371,-767.0,0.00026722,2]
[378531044,1754902254380,-151.0,0.00026749,7]
[378531045,1754902254389,-424.953675,0.00026749,7]
[378531046,1754902254398,-424.953675,0.00026749,7]
[378531047,1754902254407,-160.0,0.00026766,9]
[378531048,1754902254416,-199.57253,0.000268,7]
[378531049,1754902254425,-199.572526,0.000268,7]
[378531050,1754902254434,-275.42555,0.000268,7]
[378531051,1754902254443,-275.42555,0.000268,7]
[378531052,1754902254452,-213.350436,0.000268,7]
[378531053,1754902254463,-258.266485,0.000268,7]
[378531054,1754902254472,-258.266479,0.000268,7]
[378531055,1754902254481,-151.0,0.000268,7]
[378531056,1754902254490,-1160.0,0.00026822,2]
[378531057,1754902254499,-500.0,0.00026826,2]
[378531058,1754902254508,-150.0,0.00026849,2]
[378531059,1754902254517,-522.0,0.0002685,2]
[378531060,1754902254528,-285.690599,0.000269,7]
[378531061,1754902254537,-285.690599,0.000269,7]
[378531062,1754902254547,-151.0,0.000269,7]
[378531063,1754902254556,-151.0,0.000269,7]
[378531064,1754902254566,-151.0,0.000269,7]
[378531065,1754902254575,-330.851879,0.000269,7]
[378531066,1754902254583,-330.851879,0.000269,7]
[378531067,1754902254593,-151.0,0.000269,7]
[378531068,1754902254603,-2064.54591177,0.00026904,2]
[378531069,1754902254613,-4000.0,0.00026908,2]
[378531070,1754902254622,-3000.0,0.00026912,2]
[378531071,1754902254631,-573.11525788,0.00026918,6]
[378531072,1754902254641,-200.0,0.00026958,15]
[378531073,1754902254650,-200.0,0.00026958,15]
[378531074,1754902254659,-200.0,0.00026958,15]
[378531075,1754902254668,-200.0,0.00026958,15]
[378531076,1754902254677,-200.0,0.00026958,15]
[378531077,1754902254687,-200.0,0.00026958,15]
[378531078,1754902254696,-200.0,0.00026958,15]
[378531079,1754902254706,-200.0,0.00026958,15]
[378531080,1754902254716,-200.0,0.00026958,15]
[378531081,1754902254725,-200.0,0.00026958,15]
[378531082,1754902254735,-200.0,0.00026958,15]
[378531083,1754902254744,-200.0,0.00026958,15]
[378531084,1754902254754,-342.0,0.00026958,15]
[378531085,1754902254763,-151.0,0.00026968,7]
[378531086,1754902254774,-151.0,0.00026968,7]
[378531087,1754902254783,-181004.38775959,0.00027,2]
[378531088,1754902255189,-615.28384475,0.00020819,2]
[378531089,1754902255198,-43274.85146386,0.00027,2]
[378531090,1754902255208,-1000.0,0.00027,27]
[378531091,1754902255217,-285.690599,0.00027,7]
[378531092,1754902255226,-285.690599,0.00027,7]
[378531093,1754902255235,-151.0,0.00027,7]
[378531094,1754902255244,-151.0,0.00027,7]
[378531095,1754902255253,-151.0,0.00027,7]
[378531096,1754902255262,-151.0,0.00027,7]
[378531097,1754902255271,-151.0,0.00027,7]
[378531098,1754902255281,-151.0,0.00027,7]
[378531099,1754902255291,-151.0,0.00027,7]
[378531100,1754902255301,-151.0,0.00027,7]
[378531101,1754902255311,-151.0,0.00027,7]
[378531102,1754902255321,-364.938072,0.00027,7]
[378531103,1754902255332,-364.938072,0.00027,7]
[378531104,1754902255342,-154.080501,0.00027,7]
[378531105,1754902255351,-154.080501,0.00027,7]
[378531106,1754902255362,-151.0,0.00027,7]
[378531107,1754902255372,-151.0,0.00027,7]
[378531108,1754902255382,-151.0,0.00027,7]
[378531109,1754902255391,-151.0,0.00027,7]
[378531110,1754902255400,-151.0,0.00027,7]
[378531111,1754902255411,-809.690858,0.00027,7]
[378531112,1754902255420,-809.690858,0.00027,7]
[378531113,1754902255431,-151.0,0.00027,7]
[378531114,1754902255441,-181.599893,0.00027,7]
[378531115,1754902255450,-181.599893,0.00027,7]
[378531116,1754902255460,-151.0,0.00027,7]
[378531117,1754902255469,-255.337582,0.00027,7]
[378531118,1754902255478,-255.337582,0.00027,7]
[378531119,1754902255487,-634.995918,0.00027,7]
[378531120,1754902255497,-634.995918,0.00027,7]
[378531121,1754902255506,-330.851879,0.00027,7]
[378531122,1754902255516,-330.851879,0.00027,7]
[378531123,1754902255530,-823.216676,0.00027,7]
[378531124,1754902255540,-823.216676,0.00027,7]
[378531125,1754902255549,-152.036806,0.00027,7]
[378531126,1754902255558,-254.27202,0.00027,7]
[378531127,1754902255568,-424.953675,0.00027,7]
[378531128,1754902255578,-424.953675,0.00027,7]
[378531129,1754902255588,-160.0,0.00027,3]
[378531130,1754902255600,-275.42555,0.00027,7]
[378531131,1754902255609,-275.425556,0.00027,7]
[378531132,1754902255618,-160.0,0.00027,3]
[378531133,1754902255628,-160.0,0.00027001,10]
[378531134,1754902255637,-1500.0,0.00027064,2]
[378531135,1754902255646,-750.0,0.00027064,2]
[378531136,1754902255655,-151.0,0.000271,7]
[378531137,1754902255665,-151.0,0.000271,7]
[378531138,1754902255674,-255.337582,0.000271,7]
[378531139,1754902255684,-255.337582,0.000271,7]
[378531140,1754902255694,-634.995918,0.000271,7]
[378531141,1754902255703,-634.995918,0.000271,7]
[378531142,1754902255713,-500.0,0.000271,2]
[378531143,1754902255722,-4000.0,0.00027108,2]
[378531144,1754902255732,-4000.0,0.00027108,2]
[378531145,1754902255741,-522.0,0.00027124,2]
[378531146,1754902255750,-4000.0,0.00027143,4]
[378531147,1754902255759,-160.0,0.00027236,11]
[378531148,1754902255769,-303.65626775,0.00027261,2]
[378531149,1754902255779,-300.0,0.00027273,2]
[378531150,1754902255788,-95747.67887191,0.000273,5]
[378531151,1754902255800,-4371.1360036,0.000273,5]
[378531152,1754902256484,-151.39906693,0.00019978,2]
[378531153,1754902256493,-250.0,0.00020372,2]
[378531154,1754902256503,-151.0,0.00020372,2]
[378531155,1754902256512,-250.0,0.00020372,2]
[378531156,1754902256522,-151.0,0.00020372,2]
[378531157,1754902256535,-151.0,0.00020372,2]
[378531158,1754902256544,-250.0,0.00020372,2]
[378531159,1754902256553,-414.75,0.00020974,2]
[378531160,1754902256563,-414.75,0.00022716,2]
[378531161,1754902256572,-461.69158338,0.00024388,2]
[378531162,1754902256582,-449.58967409,0.000273,5]
[378531163,1754902257562,-250.0,0.00020372,2]
[378531164,1754902257572,-414.75,0.00023458,2]
[378531165,1754902257583,-276.5,0.00024261,2]
[378531166,1754902257592,-276.5,0.00024323,2]
[378531167,1754902257605,-276.5,0.00024384,2]
[378531168,1754902257617,-216.68257536,0.00024388,2]
[378531169,1754902257627,-1333.88463426,0.000273,5]
[378531171,1754902262121,9016.36666108,0.00030137,120]
[378531173,1754902340680,733.41982695,0.000199,2]
[378531180,1754902443612,485.09244329,0.00019874,2]
[378531181,1754902443635,404.06092884,0.00019874,2]
[378531184,1754902506919,276.82648324,0.00019875,2]
[378531189,1754902519898,708.97249953,0.000199,2]
[378531203,1754902586754,1000.0,0.0003,120]
[378531206,1754902590900,200.0,0.00030095,120]
[378531207,1754902608253,18610.14008839,0.00018973,2]
[378531208,1754902608277,6289.85991161,0.00018973,2]
[378531215,1754902651589,200.0,0.00030077,120]
[378531223,1754902699575,704.44392476,0.000199,2]
[378531227,1754902728834,936.00635882,0.00019872,2]
[378531234,1754902785741,234.97171136,0.00019372,2]
[378531251,1754902877304,680.96246064,0.000199,2]
[378531258,1754902892608,356.53304,0.00013699,2]
[378531264,1754902917154,151.0,0.000189,2]
[378531265,1754902917554,151.0,0.000175,2]
[378531279,1754903013901,819.00556395,0.00019869,2]
[378531281,1754903029258,7957.94219503,0.0001985,2]
[378531285,1754903034963,1718.27483383,0.00019901,2]
[378531286,1754903034985,3281.72516617,0.00019901,2]
[378531287,1754903043653,3083.45915461,0.00019901,2]
[378531288,1754903049509,1740.7424726,0.00018961,2]
[378531291,1754903055000,1061.99295414,0.000199,2]
[378531305,1754903082624,1223.8107243,0.00018961,2]
[378531335,1754903191260,6629.4605707,0.00018958,2]
[378531337,1754903195661,2978.80895748,0.00019858,2]
[378531338,1754903195683,4736.15242252,0.00019858,2]
[378531341,1754903200839,15263.84757748,0.00019868,2]
[378531342,1754903200864,20000.0,0.00019868,2]
[378531343,1754903200886,20000.0,0.00019868,2]
[378531344,1754903200913,12099.93916995,0.00019868,2]
[378531346,1754903204603,5000.0,0.00019901,2]
[378531352,1754903220136,2900.06083005,0.00019901,2]
[378531353,1754903220159,2099.93916995,0.00019901,2]